[Event "41st Zalakaros Festival 2022"]
[Site "Zalakaros"]
[Date "2022.06.06"]
[Round "2.7"]
[White "Farkas, Gabor"]
[Black "Pogany, Zsombor"]
[Result "1-0"]
[ECO "D02"]
[WhiteElo "2324"]
[BlackElo "2104"]
[Annotator "TA"]
[PlyCount "65"]
[EventDate "2022.06.05"]
[EventType "swiss"]
[EventCountry "HUN"]
[SourceTitle "playchess.com"]
[Source "ChessBase"]
[SourceQuality "1"]
[TimeControl "40/5400+30:1800+30"]

{[%evp 9,65,-40,0,0,9,0,3,-9,7,10,18,11,11,0,2,0,16,11,31,31,31,25,35,4,0,15,0,0,0,0,23,17,22,20,85,0,72,0,0,0,266,268,275,258,258,263,291,291,256,292,284,281,270,278,351,366,29988,1333]} 1. Nf3 {[%emt 0:01:25]} Nf6 {[%emt 0:00:56]} 2. d4 {[%emt 0:00:47]} d5 {[%emt 0:00:48]} 3. Bf4 {[%emt 0:00:51]} c5 {[%emt 0:00:31]} 4. e3 {[%emt 0:02:25]} Nc6 {[%emt 0:00:46]} 5. Bb5 {[%emt 0:11:38]} cxd4 {[%emt 0:05:53]} 6. exd4 {[%emt 0:04:58] D02: 1 d4 d5 2 Nf3 sidelines, including 2...Nf6 3 g3 and 2...Nf6 3 Bf4.} Bg4 {[%emt 0:04:37]} 7. O-O {[%emt 0:02:18]} e6 {[%emt 0:01:12]} 8. c3 {[%emt 0:06:25] The position is equal.} Bd6 {[%emt 0:06:32]} (8... Qb6 $5 {[%cal Rb6b5]} 9. a4 a6 10. Bxc6+ Qxc6 $11) 9. Bxd6 {[%emt 0:07:32]} Qxd6 {[%emt 0:00:11]} 10. Nbd2 {[%emt 0:00:11]} O-O {[%emt 0:00:35] [#]} 11. Qe1 $146 {[%emt 0:00:57]} ({Predecessor:} 11. Re1 a6 12. Bf1 Rfe8 13. h3 Bh5 14. a4 Qc7 15. Qb3 Re7 16. Re3 Rae8 17. Rae1 {½-½ (34) Ding,L (2799)-Hovhannisyan,R (2626) Chess.com INT 2021}) 11... Qc7 {[%emt 0:03:38]} 12. Bd3 {[%emt 0:02:52]} Bh5 {[%emt 0:02:16]} 13. Qe3 {[%emt 0:03:12]} Bg6 {[%emt 0:02:26]} 14. Bxg6 {[%emt 0:03:01]} hxg6 {[%emt 0:00:12]} 15. Rfe1 {[%emt 0:00:52]} b5 {[%emt 0:01:00]} 16. Ng5 {[%emt 0:02:22]} b4 {[%emt 0:05:17]} 17. Rac1 {[%emt 0:04:18]} Qb6 {[%emt 0:26:50]} 18. Qh3 {[%emt 0:06:48]} bxc3 {[%emt 0:01:14]} 19. bxc3 {[%emt 0:00:29]} Rfe8 {[%emt 0:02:42]} 20. Ndf3 {[%emt 0:03:33] Inhibits e5. aiming for Ne5.} Rac8 {[%emt 0:20:04]} 21. Ne5 {[%emt 0:07:11]} Rc7 {[%emt 0:04:19] [#]} (21... Nxe5 $2 22. dxe5 Nh5 23. g4 $18 (23. Qf3 f6 $11)) (21... Nd8 $1 $11) 22. Rb1 {[%emt 0:03:43]} (22. Re3 $1 $16) 22... Qa5 {[%emt 0:04:03]} (22... Qa6 $11 {remains equal.}) 23. Re3 {[%emt 0:00:46] White is much more active.} (23. Nexf7 $16 Rxf7 24. Nxf7 Kxf7 25. Rb7+ Kg8 26. Rxe6) 23... Qxa2 $11 {[%emt 0:01:29]} 24. Rbe1 $40 {[%emt 0:00:01][%mdl 128] White attacks.} Nxe5 $4 {[%emt 0:01:40][%mdl 8192]} (24... Qd2 $11 {and Black is okay.}) 25. dxe5 $18 {[%emt 0:01:25]} Ne4 {[%emt 0:00:20]} (25... Nh5 $2 26. g4 Qc2 27. gxh5 $18) 26. Qh7+ {[%emt 0:00:42]} Kf8 {[%emt 0:00:05]} 27. Nxe4 {[%emt 0:00:16] The board is on fire.} dxe4 {[%emt 0:00:09]} 28. Qh8+ {[%emt 0:00:15][%mdl 64] [#] Deflection} (28. Rxe4 Rc4 29. Qh8+ Ke7 30. Qh4+ (30. Qxg7 Rxe4 31. Qf6+ Kf8 $11) 30... g5 31. Qxg5+ Kf8 $16) 28... Ke7 {[%emt 0:00:05]} 29. Qxg7 {[%emt 0:00:35]} Kd8 {[%emt 0:02:45]} 30. Rxe4 {[%emt 0:00:20]} Kc8 {[%emt 0:00:14]} 31. Rb4 {[%emt 0:00:54]} Rd8 {[%emt 0:02:13]} 32. Reb1 {[%emt 0:01:23] Rb8+ is the strong threat.} Rd3 $2 {[%emt 0:00:48]} (32... Rcd7 $18 33. h3 a5) 33. h3 {[%emt 0:02:02] Weighted Error Value: White=0.10 (very precise) /Black=0.56} (33. Qf8+ $142 Kd7 34. Qxf7+ Kc6 35. Qe8+ Rdd7 36. Qa8+ Rb7 37. Rxb7 Qxb1+ 38. Rxb1+ Kc5 39. Qc8+ Kd5 40. Qxd7+ Ke4 41. Qd4+ Kf5 42. Rb4 Kg5 43. Qh4+ Kf5 44. Qf6#) 1-0

[Event "41st Zalakaros Festival 2022"]
[Site "Zalakaros"]
[Date "2022.06.06"]
[Round "2.8"]
[White "Hrbolka, Ladislav"]
[Black "Peczely, Sebastian Zsombor"]
[Result "1/2-1/2"]
[ECO "D11"]
[WhiteElo "2193"]
[BlackElo "2313"]
[Annotator "TA"]
[PlyCount "87"]
[EventDate "2022.06.05"]
[EventType "swiss"]
[EventCountry "HUN"]
[SourceTitle "playchess.com"]
[Source "ChessBase"]
[SourceQuality "1"]
[TimeControl "40/5400+30:1800+30"]

{[%evp 15,87,25,37,25,34,14,33,15,68,38,39,11,50,20,64,62,90,88,95,82,91,29,29,30,25,23,33,34,30,22,28,15,48,14,12,0,0,0,0,0,0,0,0,-46,-48,-48,-27,-55,-28,-18,-29,-34,-39,-20,-7,-6,0,-9,0,0,0,0,0,0,8,8,12,12,10,12,14,18,29,14]} 1. d4 {[%emt 0:00:33]} d5 {[%emt 0:00:41]} 2. Nf3 {[%emt 0:00:06]} Nf6 {[%emt 0:00:05]} 3. c4 {[%emt 0:00:05]} c6 {[%emt 0:00:04]} 4. e3 {[%emt 0:01:25]} g6 {[%emt 0:01:23]} 5. Nc3 {[%emt 0:00:07]} Bg7 {[%emt 0:00:05]} 6. Be2 {[%emt 0:00:14]} O-O {[%emt 0:00:43]} 7. O-O {[%emt 0:00:05]} dxc4 {[%emt 0:01:08] Recently 7...a6 got a lot of attention.} 8. Bxc4 {[%emt 0:00:32]} b5 {[%emt 0:00:03]} 9. Be2 {[%emt 0:02:08] D94: Grünfeld: 4 Nf3 Bg7 5 e3.} Bb7 {[%emt 0:00:27]} 10. b3 {[%emt 0:02:29]} Nbd7 {[%emt 0:04:13]} 11. Bb2 {[%emt 0:00:29] [#] White is slightly better.} Nb6 $146 {[%emt 0:06:04]} (11... a6 $11) ({Predecessor:} 11... a6 12. b4 e6 13. Qb3 Nd5 14. Ne4 a5 15. a3 Qe7 16. Nc5 Nxc5 17. bxc5 Rfd8 {½-½ (78) Tari,A (2618)-Van Foreest,J (2601) Chess.com INT 2019}) 12. Nd2 {[%emt 0:05:59]} Nfd7 {[%emt 0:10:56]} 13. Bf3 {[%emt 0:14:48]} Qb8 {[%emt 0:07:27]} 14. a4 {[%emt 0:23:30][%cal Ba2a4,Ba4a5,Ba5a6][%mdl 32]} b4 {[%emt 0:04:33]} 15. Nce4 {[%emt 0:00:56]} e5 {[%emt 0:17:12]} 16. a5 {[%emt 0:06:54] White is more active.} Nd5 {[%emt 0:01:15]} 17. a6 {[%emt 0:00:08]} Bc8 {[%emt 0:00:08]} 18. Nc4 {[%emt 0:00:10]} (18. Qc2 $16) 18... f5 $11 {[%emt 0:04:17]} 19. Ned6 {[%emt 0:00:16][%cal Rd4e5]} e4 {[%emt 0:00:35]} 20. Be2 {[%emt 0:00:35]} N7b6 {[%emt 0:04:47]} 21. Nxc8 {[%emt 0:03:46]} Qxc8 {[%emt 0:00:35]} 22. Qc2 {[%emt 0:01:24]} Qe6 {[%emt 0:05:03]} 23. Rae1 {[%emt 0:07:59]} g5 {[%emt 0:06:01][%cal Bg6g5,Bg5g4][%mdl 32]} 24. f3 exf3 {[%emt 0:02:09]} 25. Bxf3 {[%emt 0:04:09]} Nxc4 {[%emt 0:05:18]} 26. Qxc4 {[%emt 0:01:26]} g4 {[%emt 0:00:58]} 27. e4 {[%emt 0:05:30]} gxf3 {[%emt 0:02:30]} 28. exd5 {[%emt 0:00:09]} Qxd5 {[%emt 0:01:10]} 29. Qxd5+ {[%emt 0:02:14]} (29. Rxf3 $11 {was preferrable.} Rae8 30. Rxe8 (30. Qxb4 c5 $11) 30... Rxe8 31. Qxb4) 29... cxd5 $15 {[%emt 0:00:04]} 30. Rxf3 {[%emt 0:00:09]} Rac8 {[%emt 0:02:27]} 31. Re7 {[%emt 0:04:43]} Bf6 {[%emt 0:01:17]} (31... Rf7 $5 {[%cal Rf7e7]} 32. Rb7 Rc2 $11) 32. Re2 {[%emt 0:00:29]} ({Don't go for} 32. Rxa7 $2 Rc2 33. Rd7 (33. Rxf5 $2 Rxb2 34. Rxf6 Rxf6 $19) (33. Rg3+ $2 Kh8 $19) 33... Rxb2 $19) 32... Rc6 {[%emt 0:00:14]} 33. Kf1 {[%emt 0:01:17]} Rxa6 {[%emt 0:08:51]} 34. Rxf5 {[%emt 0:00:44]} Ra2 {[%emt 0:00:15]} 35. Ref2 {[%emt 0:04:43]} Bg7 {[%emt 0:00:14] [#] And now ...Rxf5 would win.} 36. Rxf8+ {[%emt 0:00:39]} Bxf8 $11 {[%emt 0:00:05][%mdl 4096] Endgame KRB-KRB} 37. Ke1 {[%emt 0:01:11]} a5 {[%emt 0:02:44]} 38. Kd1 {[%emt 0:00:48]} Bh6 {[%emt 0:00:08]} 39. Re2 {[%emt 0:03:13]} a4 {[%emt 0:00:54]} 40. bxa4 {[%emt 0:00:00]} b3 {[%emt 0:00:00]} 41. a5 {[%emt 0:04:13]} Rxa5 {[%emt 0:03:47]} 42. Re8+ {[%emt 0:00:21]} Kf7 {[%emt 0:01:50]} 43. Rb8 {[%emt 0:00:12]} Bf4 44. Rxb3 {Weighted Error Value: White=0.11 (very precise) /Black=0.10 (very precise)} 1/2-1/2

[Event "41st Zalakaros Festival 2022"]
[Site "Zalakaros"]
[Date "2022.06.06"]
[Round "2.9"]
[White "Jeszenszky, Jozsef"]
[Black "Gyorkos, Lajos"]
[Result "1/2-1/2"]
[ECO "E46"]
[WhiteElo "2055"]
[BlackElo "2254"]
[Annotator "TA"]
[PlyCount "61"]
[EventDate "2022.06.05"]
[EventType "swiss"]
[EventCountry "HUN"]
[SourceTitle "playchess.com"]
[Source "ChessBase"]
[SourceQuality "1"]
[TimeControl "40/5400+30:1800+30"]

{[%evp 14,61,8,16,31,8,31,31,42,25,29,38,37,34,39,25,27,3,2,7,4,3,7,5,15,15,19,19,28,33,26,13,19,0,11,0,122,113,119,112,130,-5102,62,-29970,103,0,0,-2334,148,-1010]} 1. d4 {[%emt 0:00:35]} Nf6 {[%emt 0:00:43]} 2. c4 {[%emt 0:00:07]} e6 {[%emt 0:00:32]} 3. Nc3 {[%emt 0:00:18]} Bb4 {[%emt 0:00:16]} 4. e3 {[%emt 0:00:24]} O-O {[%emt 0:00:12]} 5. Bd2 {[%emt 0:00:03]} d5 {[%emt 0:00:40]} 6. Nf3 {[%emt 0:00:17]} c5 {[%emt 0:00:12]} 7. a3 {[%emt 0:00:07]} Bxc3 {[%emt 0:00:29]} 8. Bxc3 {[%emt 0:00:07]} Ne4 {[%emt 0:00:57] 8...Ne4 scores better than 8...cxd4. E51: Nimzo-Indian: Rubinstein: 4...0-0 5 Nf3 d5.} 9. Rc1 {[%emt 0:00:06]} (9. Qc2 {keeps more tension.} Nd7 10. cxd5 exd5 11. dxc5 Ndxc5 12. b4) 9... cxd4 {[%emt 0:00:56]} (9... b6 {looks sharper.} 10. dxc5 bxc5 11. Bd3 Nxc3 12. Rxc3 Nd7) 10. Qxd4 {[%emt 0:04:26][%csl Gc3][%cal Rd4g7]} Nxc3 {[%emt 0:00:10] White is slightly better.} 11. Qxc3 {[%emt 0:00:05]} dxc4 {[%emt 0:01:37]} 12. Bxc4 {[%emt 0:00:44]} Nc6 {[%emt 0:00:19]} 13. O-O {[%emt 0:00:31][%cal Bh1f1,Bf1d1,Bd1d5,Bd5c5,Bc5c7][%mdl 32]} Bd7 {[%emt 0:00:21]} 14. Rfd1 {[%emt 0:01:19]} Qe7 {[%emt 0:00:19] [#]} 15. Ne5 $146 {[%emt 0:04:15]} ({Predecessor:} 15. b4 a6 16. Nd2 Rfd8 17. Nb3 Be8 18. Bd3 Rac8 19. Qb2 Nb8 20. Rxc8 Rxc8 21. Rd2 {½-½ (28) Dreev,A (2662)-Arutinian,D (2555) Skopje 2019}) 15... Nxe5 {[%emt 0:00:19]} 16. Qxe5 {[%emt 0:00:03]} Bc6 {[%emt 0:00:22] [#]} 17. Bd5 $1 {[%emt 0:01:19]} Bxd5 {[%emt 0:01:14]} 18. Rxd5 {[%emt 0:00:07][%mdl 64] Pin} Rfd8 {[%emt 0:01:49]} 19. Rdc5 {[%emt 0:02:44]} f6 {[%emt 0:09:59]} 20. Qc3 {[%emt 0:00:13]} Rd7 {[%emt 0:01:31]} 21. g3 {[%emt 0:04:02]} Rad8 {[%emt 0:00:23]} 22. Rc7 {[%emt 0:01:29]} Kf7 {[%emt 0:00:38]} 23. Qa5 {[%emt 0:06:53]} a6 24. Qb6 {Hoping for Qxb7.} Rd1+ (24... Rxc7 $11 {keeps the balance.} 25. Rxc7 Rd7) 25. Kg2 $16 Rxc1 26. Rxe7+ ({Reject} 26. Rxc1 $6 e5 $11) 26... Kxe7 27. Qxa6 $2 {[%mdl 8192] KQ-KRR} Rd7 $2 (27... bxa6 $19 28. b3 Rb8) 28. Qxb7 $2 {[%mdl 8192]} Rc2 $2 {[#]} (28... Rxb7 {mates} 29. b4 Ra1 30. Kh3 Rxa3 31. g4 Rxb4 32. Kg3 g5 33. Kh3 e5 34. Kg2 e4 35. Kg3 Rb2 36. h4 Raa2 37. hxg5 fxg5 38. f4 Rg2+ 39. Kh3 Rh2+ 40. Kg3 Rag2#) 29. Qa6 ({Only move:} 29. Qb4+ $1 $16 Kf7 30. b3) 29... Rdd2 30. b4 $2 {[%mdl 8192]} (30. Qa7+ $11 Kd6 31. Kg1) 30... Kf8 $2 ({Black should try} 30... Rxf2+ $19 31. Kg1 Rg2+ 32. Kf1 Rxh2) 31. Qa7 $2 {[%mdl 40960] Weighted Error Value: White=1.22/Black=0.80. An unexpected result.} ({Don't play} 31. Qxe6 $6 Rxf2+ 32. Kh3 Rxh2+ 33. Kg4 Rcf2 34. Qd6+ Kf7 35. Qd7+ Kf8 36. Qd6+ Kf7 37. Qd7+ Kf8 38. Qd6+ $11) (31. Qa8+ $16 Ke7 32. Qb7+ Kf8 33. Qa8+ Ke7 34. Qb7+ Kf8 35. Qa8+) 1/2-1/2

[Event "41st Zalakaros Festival 2022"]
[Site "Zalakaros"]
[Date "2022.06.06"]
[Round "2.10"]
[White "Vegh, Endre"]
[Black "Boguszlavszkij, Jevgenyij"]
[Result "1/2-1/2"]
[ECO "D36"]
[WhiteElo "2225"]
[BlackElo "2088"]
[Annotator "TA"]
[PlyCount "49"]
[EventDate "2022.06.05"]
[EventType "swiss"]
[EventCountry "HUN"]
[SourceTitle "playchess.com"]
[Source "ChessBase"]
[SourceQuality "1"]
[TimeControl "40/5400+30:1800+30"]

{[%evp 11,49,12,2,11,25,12,12,14,20,16,16,20,21,10,35,29,32,32,25,39,29,18,27,0,22,-2,0,-11,33,64,173,164,171,39,46,0,26,0,0,-11]} 1. d4 {[%emt 0:00:31]} Nf6 {[%emt 0:05:26]} 2. c4 {[%emt 0:00:56]} e6 {[%emt 0:00:39]} 3. Nc3 {[%emt 0:00:26]} d5 {[%emt 0:00:17]} 4. cxd5 {[%emt 0:00:20]} exd5 {[%emt 0:00:06]} 5. Bg5 {[%emt 0:00:19]} c6 {[%emt 0:00:11]} 6. Qc2 {[%emt 0:00:20]} h6 {[%emt 0:01:49] is cutting edge theory.} 7. Bh4 {[%emt 0:04:41] D36: Queen's Gambit Declined: Exchange Variation: Main line (5 Bg5 c6 6 Qc2).} (7. Bxf6 {seems wilder.} Qxf6 8. Nxd5 Qxd4 9. Rd1) 7... g6 {[%emt 0:01:23]} 8. e3 {[%emt 0:00:19]} Bf5 {[%emt 0:00:17]} 9. Bd3 {[%emt 0:00:40]} Bxd3 {[%emt 0:00:16]} 10. Qxd3 {[%emt 0:00:07]} Nbd7 {[%emt 0:04:29]} 11. Nge2 {[%emt 0:02:01]} Be7 {[%emt 0:05:52]} 12. f3 {[%emt 0:01:51] [#]} Nh5 $146 {[%emt 0:05:27][%cal Bf6h5,Bh5g7,Bg7e6][%mdl 32]} ({Predecessor:} 12... O-O 13. O-O Re8 14. Rad1 a6 15. Bf2 h5 16. h3 Nh7 17. e4 dxe4 18. fxe4 c5 {1-0 (46) Grandelius,N (2651)-Antonsen,M (2376) Ballerup 2020}) 13. Bf2 {[%emt 0:03:06]} Ng7 {[%emt 0:04:02]} 14. e4 {[%emt 0:05:26]} Nb6 {[%emt 0:02:23]} 15. O-O {[%emt 0:03:29]} O-O {[%emt 0:03:43]} 16. Rae1 {[%emt 0:04:46]} Qd7 {[%emt 0:01:29]} 17. Ng3 {[%emt 0:07:13]} Rfe8 {[%emt 0:07:40]} 18. Re2 {[%emt 0:01:27]} Ne6 {[%emt 0:05:37]} 19. Be3 {[%emt 0:02:40] Inhibits Nf4.} Bf8 {[%emt 0:00:32]} 20. e5 {[%emt 0:06:27] f4 is the strong threat.} h5 {[%emt 0:03:49]} (20... c5 $1 $14) 21. f4 $1 $18 {[%emt 0:17:34] Strongly threatening f5.} h4 {[%emt 0:03:15] [#]} 22. Nh1 {[%emt 0:00:44]} ({Don't play} 22. f5 $6 hxg3 23. fxe6 gxh2+ 24. Kh1 Qxe6 $16) (22. Nh5 $1 $18 {[%cal Rh5f6][%mdl 512] Hoping for Nf6+.} gxh5 23. f5) 22... Ng7 $14 {[%emt 0:00:18]} 23. Bf2 {[%emt 0:04:42]} (23. Rf3 $14 {should be considered.}) 23... Qf5 {[%emt 0:03:44]} 24. Qxf5 {[%emt 0:02:18]} (24. Qf3 $5 {[%cal Rf2h4]}) 24... Nxf5 {[%emt 0:00:07]} 25. g4 {[%emt 0:00:38] Weighted Error Value: White=0.15 (very precise) /Black=0.13 (very precise)} 1/2-1/2

[Event "41st Zalakaros Festival 2022"]
[Site "Zalakaros"]
[Date "2022.06.07"]
[Round "3.1"]
[White "Kantor, Gergely"]
[Black "Farkas, Gabor"]
[Result "1-0"]
[ECO "A80"]
[WhiteElo "2587"]
[BlackElo "2324"]
[Annotator "TA"]
[PlyCount "85"]
[EventDate "2022.06.05"]
[EventType "swiss"]
[EventCountry "HUN"]
[SourceTitle "playchess.com"]
[Source "ChessBase"]
[SourceQuality "1"]
[TimeControl "40/5400+30:1800+30"]

{[%evp 11,85,11,25,21,62,66,84,74,78,73,80,61,78,38,39,45,68,73,78,68,98,93,86,55,67,65,50,60,64,60,169,161,224,227,203,209,457,449,456,453,456,456,597,594,585,467,496,464,518,509,572,570,643,609,787,764,776,715,758,702,2044,1958,1673,1433,1767,1816,29978,29972,5110,0,29978,29979,29991,29991,29992,29993]} 1. d4 {[%emt 0:03:42]} f5 {[%emt 0:01:06]} 2. Nc3 {[%emt 0:01:55]} Nf6 {[%emt 0:04:58]} 3. Bg5 {[%emt 0:00:28]} d5 {[%emt 0:02:26]} 4. Bxf6 {[%emt 0:00:23]} exf6 {[%emt 0:00:40]} 5. e3 {[%emt 0:00:22]} Be6 {[%emt 0:05:58]} 6. Bd3 {[%emt 0:01:16]} c6 {[%emt 0:04:18]} 7. Qf3 {[%emt 0:02:04] A80: Dutch Defence: Unusual White second moves.} Qd7 {[%emt 0:02:33]} 8. Nge2 {[%emt 0:08:04] White is more active.} Na6 {[%emt 0:03:52]} 9. Bxa6 $5 {[%emt 0:07:43][%mdl 4] White is better. An interesting side line.} bxa6 {[%emt 0:00:08]} 10. Na4 {[%emt 0:02:09]} Rb8 {[%emt 0:00:41]} 11. Nf4 {[%emt 0:06:32] Pair of Knights!} Bd6 {[%emt 0:04:48] [#]} 12. Nxe6 $146 {[%emt 0:10:09]} ({Predecessor:} 12. Qe2 Rb5 13. b3 O-O 14. O-O g5 15. Nd3 Qc7 16. Ndc5 Bc8 17. c4 Rb8 18. Rac1 Qa5 19. cxd5 cxd5 20. Qf3 Qd8 21. Qxd5+ Kh8 22. Nc3 {1-0 (22) Prokopchuk,Y (2275)-Timirev,S (1788) St Petersburg 2018}) 12... Qxe6 {[%emt 0:00:10]} 13. O-O {[%emt 0:00:16][%cal Oc2c4]} O-O {[%emt 0:01:56]} 14. g3 {[%emt 0:00:34]} Rfc8 {[%emt 0:03:48]} 15. Rac1 {[%emt 0:04:01][%cal Ba1c1,Bc1c2,Bc2c6][%mdl 32]} g6 {[%emt 0:07:10]} 16. a3 {[%emt 0:09:05]} a5 {[%emt 0:05:28]} 17. c3 {[%emt 0:09:50][%cal Bc2c3,Bc3c4][%mdl 32]} Kg7 {[%emt 0:03:57]} 18. Rc2 {[%emt 0:00:36][%cal Oc3c4]} h5 {[%emt 0:01:09]} 19. c4 {[%emt 0:06:19]} h4 {[%emt 0:03:29]} ({Weaker is} 19... dxc4 20. Rfc1 $16) 20. Rfc1 {[%emt 0:01:43]} hxg3 {[%emt 0:02:20] White leaves nothing to chance now.} ({Better is} 20... g5 $14) 21. hxg3 $18 {[%emt 0:00:33]} Rh8 {[%emt 0:09:17]} (21... g5 {is a better defense.} 22. cxd5 cxd5) 22. cxd5 {[%emt 0:01:30]} cxd5 {[%emt 0:00:02] [#]} 23. Rc6 $1 {[%emt 0:07:35]} Rh3 $2 {[%emt 0:01:01]} (23... f4) 24. Nc5 {[%emt 0:05:58]} Qe7 {[%emt 0:00:24]} 25. Qxd5 {[%emt 0:04:27]} Bxc5 {[%emt 0:03:55]} 26. R1xc5 {[%emt 0:01:33] Strongly threatening Rc7.} ({But not} 26. Qxc5 $2 Qe4 27. Qe7+ (27. Qxa7+ {leads to mate.} Kh6) 27... Qxe7 $19) 26... Kh6 {[%emt 0:00:01]} (26... Rxb2 $2 27. Rc7 Qxc7 28. Rxc7+) 27. Kg2 {[%emt 0:01:14]} Rh5 {[%emt 0:00:15]} 28. Qe6 {[%emt 0:03:01]} Qxe6 {[%emt 0:05:21]} 29. Rxe6 {[%emt 0:00:05]} Rxb2 {[%emt 0:00:23]} 30. Rxa5 {[%emt 0:01:04][%mdl 4096] Endgame KRR-KRR} Rb1 {[%emt 0:01:28]} 31. Rxf6 {[%emt 0:00:47]} Rbh1 {[%emt 0:00:16]} 32. Kf3 {[%emt 0:00:41]} R5h2 {[%emt 0:00:05]} 33. Raxf5 {[%emt 0:00:38]} Ra1 {[%emt 0:01:09]} 34. Rf4 {[%emt 0:00:35]} Rxa3 {[%emt 0:00:18]} 35. Rg4 {[%emt 0:00:28]} Ra2 {[%emt 0:00:09]} 36. Rgxg6+ {[%emt 0:00:25]} Kh7 {[%emt 0:00:06]} 37. Ke4 {[%emt 0:00:25]} a5 {[%emt 0:00:05]} 38. f4 {[%emt 0:00:21]} Rhe2 {[%emt 0:00:04]} 39. Rh6+ {[%emt 0:00:19]} Kg7 {[%emt 0:00:05]} 40. Rhg6+ {[%emt 0:00:00]} Kh7 {[%emt 0:00:00]} 41. Kf5 {[%emt 0:08:44] White mates.} Rxe3 {[%emt 0:01:29]} 42. Rf7+ {[%emt 0:00:36]} Kh8 {[%emt 0:00:34]} 43. Kf6 {[%emt 0:00:51] Weighted Error Value: White=0.10 (very precise) /Black=0.71} 1-0

[Event "41st Zalakaros Festival 2022"]
[Site "Zalakaros"]
[Date "2022.06.07"]
[Round "3.2"]
[White "Bernath, Bence"]
[Black "Pranav Vijay"]
[Result "0-1"]
[ECO "C78"]
[WhiteElo "2202"]
[BlackElo "2265"]
[Annotator "TA"]
[PlyCount "100"]
[EventDate "2022.06.05"]
[EventType "swiss"]
[EventCountry "HUN"]
[SourceTitle "playchess.com"]
[Source "ChessBase"]
[SourceQuality "1"]
[TimeControl "40/5400+30:1800+30"]

{[%evp 20,100,11,9,14,-56,-30,-55,-67,-73,-64,-64,-76,-133,-139,-140,-131,-117,-111,-114,-117,-124,-118,-118,-125,-277,-299,-372,-359,-354,-360,-351,-339,-370,-374,-360,-345,-326,-277,-250,0,-344,-245,-327,-341,-332,-295,-287,-283,-306,-307,-325,-325,-443,-431,-463,-459,-557,-541,-533,-525,-615,-595,-706,-698,-789,-787,-2079,-1829,-3289,-3194,-2976,-1658,-2264,-1658,-6079,-5772,-5716,-5667,-5600,-5100,-4610,-856]} 1. e4 {[%emt 0:00:37]} e5 {[%emt 0:00:43]} 2. Nf3 {[%emt 0:00:25]} Nc6 {[%emt 0:00:10]} 3. Bb5 {[%emt 0:00:52]} a6 {[%emt 0:00:10]} 4. Ba4 {[%emt 0:00:12]} Nf6 {[%emt 0:00:09]} 5. O-O {[%emt 0:00:32]} b5 {[%emt 0:00:09]} 6. Bb3 {[%emt 0:00:20]} Bb7 {[%emt 0:00:06]} 7. Re1 {[%emt 0:03:49]} Bc5 {[%emt 0:00:17]} 8. c3 {[%emt 0:00:07]} d6 {[%emt 0:00:17]} 9. d4 {[%emt 0:00:18]} Bb6 {[%emt 0:00:08]} 10. Bg5 {[%emt 0:00:57]} h6 {[%emt 0:00:25]} 11. Bh4 {[%emt 0:01:28]} g5 {[%emt 0:00:12] C78: Ruy Lopez: Archangelsk and Möller Defences.} 12. dxe5 {[%emt 0:02:13]} (12. Bg3 $11) 12... dxe5 {[%emt 0:06:57] [#]} ({Much weaker is} 12... Nxe5 13. Bg3 $11) 13. Bg3 $146 {[%emt 0:00:51]} ({Predecessor:} 13. Qxd8+ Rxd8 14. Bg3 O-O 15. h3 Rfe8 16. Nbd2 Nh5 17. Bh2 Nf4 18. Bxf4 exf4 19. Bc2 {0-1 (42) Seytembetova,A-Lang,H Bratislava 1993}) 13... Qxd1 {[%emt 0:07:14] Black is slightly better.} 14. Bxd1 {[%emt 0:00:11]} O-O-O {[%emt 0:01:11][%cal Of6e4]} 15. Bb3 {[%emt 0:09:19]} Rhf8 {[%emt 0:01:53]} 16. a4 {[%emt 0:02:16] [#]} (16. h3 $142) 16... Nxe4 $1 $17 {[%emt 0:19:56][%mdl 512] Threatens to win with ...f5.} 17. axb5 {[%emt 0:04:38] [#]} axb5 {[%emt 0:00:10]} 18. Rxe4 {[%emt 0:01:03]} Na5 $36 {[%emt 0:00:06][%mdl 2048] Black is in control.} 19. Rxa5 {[%emt 0:00:14][%cal Oe4e5]} Bxe4 {[%emt 0:00:06]} 20. Ra1 {[%emt 0:00:07] [#]} f5 $1 {[%emt 0:02:39] Black is more active.} 21. Bxe5 {[%emt 0:09:06] [#]} Rfe8 $1 {[%emt 0:00:12]} 22. Nbd2 $2 {[%emt 0:12:33] [#]} (22. Bd4 $17 c5 23. Be3) 22... Rxe5 $1 $19 {[%emt 0:01:05][%mdl 576] Deflection} 23. Nxe5 {[%emt 0:02:25]} (23. Nxe4 Rxe4) 23... Rxd2 {[%emt 0:00:07]} 24. Rf1 {[%emt 0:01:08]} Rxb2 {[%emt 0:00:10]} 25. Be6+ {[%emt 0:00:08]} Kb7 {[%emt 0:00:18]} 26. g4 {[%emt 0:02:29]} f4 {[%emt 0:00:49]} 27. Bf5 {[%emt 0:00:30]} Bd5 {[%emt 0:01:02]} 28. Bd3 {[%emt 0:00:36]} Rb3 {[%emt 0:14:25]} 29. Rc1 {[%emt 0:04:40]} Rb2 {[%emt 0:02:38]} 30. Rf1 {[%emt 0:01:11]} Bc6 {[%emt 0:01:14]} 31. Nf7 {[%emt 0:01:21] Nd8+ is the strong threat.} Rd2 {[%emt 0:00:20]} 32. Ne5 {[%emt 0:01:55]} Be8 {[%emt 0:00:51]} 33. Be4+ {[%emt 0:00:43]} c6 {[%emt 0:00:05] Strongly threatening ...Re2.} 34. Nf3 {[%emt 0:00:35]} Ra2 {[%emt 0:02:03]} 35. h4 {[%emt 0:01:17]} gxh4 {[%emt 0:00:36]} 36. Nxh4 {[%emt 0:01:59]} Bf7 {[%emt 0:00:14] Black is clearly winning.} 37. Nf5 {[%emt 0:01:24]} Kc7 {[%emt 0:00:06] Prevents Nd6.} 38. Nd4 {[%emt 0:03:12]} Bxd4 {[%emt 0:01:37]} 39. cxd4 {[%emt 0:00:04][%mdl 4096] Endgame KRB-KRB} Rd2 {[%emt 0:00:08]} 40. Rc1 {[%emt 0:00:00]} Bc4 {[%emt 0:00:00]} 41. Kg2 {[%emt 0:00:33]} Rxd4 {[%emt 0:00:18]} 42. Kf3 {[%emt 0:00:20]} b4 {[%emt 0:00:30][%cal Bb5b4,Bb4b3][%mdl 32]} 43. Kxf4 {[%emt 0:00:22]} Bd5 {[%emt 0:01:39]} 44. f3 {[%emt 0:00:06]} Bxe4 {[%emt 0:01:12]} 45. fxe4 {[%emt 0:00:04] KR-KR} b3 {[%emt 0:00:08]} 46. Rb1 {[%emt 0:00:25]} Rb4 {[%emt 0:00:06] And now ...c5 would win.} 47. Ke3 {[%emt 0:00:32]} Kd6 {[%emt 0:00:47]} 48. Rb2 {[%emt 0:00:54]} Ke5 {[%emt 0:00:12]} 49. Kd3 {[%emt 0:00:06]} c5 {[%emt 0:00:05]} 50. Rb1 {[%emt 0:00:46]} Rxe4 {[%emt 0:00:36] Weighted Error Value: White=0.71/Black=0.13 (very precise)} (50... b2 $142 51. Kc2 Kxe4 52. Re1+ Kf4) 0-1